bitfinex-derivatives/quotes_BNBF0:USTF0_20250112
["timestamp","ask_amount","ask_price","bid_price","bid_amount"]
[1736705173924,0.28716652,696.46,695.26,0.28766216]
[1736705175821,0.28716652,696.46,695.26,3.11518172]
[1736705176327,0.28716652,696.46,695.27,1.29116877]
[1736705176522,0.28716652,696.46,695.27,7.1218224]
[1736705176726,0.28716652,696.46,695.28,2.82751956]
[1736705178124,0.28716652,696.46,695.29,3.00313407]
[1736705178327,0.28716652,696.46,695.3,2.82751956]
[1736705179027,0.28716652,696.46,695.31,1.29116877]
[1736705179228,0.28716652,696.46,695.31,2.38667281]
[1736705179628,0.28716652,696.46,695.31,5.38980688]
[1736705179823,0.28716652,696.46,695.32,2.82751956]
[1736705181427,0.28716652,696.46,695.33,3.00313407]
[1736705181622,0.28716652,696.46,695.34,2.82751956]
[1736705182926,0.28716652,696.46,695.35,3.00313407]
[1736705183123,0.28716652,696.46,695.36,2.82751956]
[1736705184930,0.28716652,696.46,695.37,3.00313407]
[1736705185129,0.28716652,696.46,695.38,2.82751956]
[1736705187225,0.28716652,696.46,695.39,3.00313407]
[1736705187531,0.28716652,696.46,695.4,2.82751956]
[1736705188331,0.28716652,696.46,695.41,3.00313407]
[1736705188531,0.28716652,696.46,695.42,2.82751956]
[1736705190132,0.28716652,696.46,695.43,3.00313407]
[1736705190432,0.28716652,696.46,695.44,2.82751956]
[1736705191833,0.28716652,696.46,695.45,3.00313407]
[1736705192030,0.28716652,696.46,695.46,2.82751956]
[1736705193934,0.28716652,696.46,695.47,3.00313407]
[1736705194135,0.28716652,696.46,695.48,1.73201552]
[1736705195732,0.28716652,696.46,695.36,2.82794165]
[1736705196337,0.28716652,696.46,695.35,3.00313407]
[1736705196538,0.28716652,696.46,695.37,3.00313407]
[1736705198435,0.28716652,696.46,695.26,0.28766216]
[1736705198637,0.28716652,696.46,695.26,2.02384343]
[1736705199940,0.28716652,696.46,695.26,0.28766216]
[1736705207047,0.28716652,696.46,695.35,1.29116877]
[1736705208047,0.28716652,696.46,695.33,1.29116877]
[1736705211251,0.28716652,696.46,695.34,1.29116877]
[1736705211853,0.28716652,696.46,695.34,2.38703752]
[1736705213755,0.28716652,696.46,695.34,5.39017159]
[1736705213949,0.28716652,696.46,695.35,2.83205002]
[1736705215754,0.28716652,696.46,695.36,3.00313407]
[1736705215954,0.28716652,696.46,695.37,2.83205002]
[1736705217260,0.28716652,696.46,695.38,3.00313407]
[1736705217459,0.28716652,696.46,695.39,2.83205002]
[1736705218657,0.28716652,696.46,695.4,3.00313407]
[1736705218857,0.28716652,696.46,695.41,2.83205002]
[1736705220062,0.28716652,696.46,695.42,3.00313407]
[1736705220261,0.28716652,696.46,695.43,2.83205002]
[1736705221859,0.28716652,696.46,695.44,3.00313407]
[1736705222064,0.28716652,696.46,695.45,2.83205002]
[1736705223564,0.28716652,696.46,695.46,3.00313407]
[1736705223764,0.28716652,696.46,695.47,2.83205002]
[1736705225367,0.28716652,696.46,695.48,3.00313407]
[1736705225560,0.28716652,696.46,695.49,2.83205002]
[1736705226671,0.28716652,696.46,695.5,3.00313407]
[1736705226870,0.28716652,696.46,695.51,2.83205002]
[1736705228266,0.28716652,696.46,695.52,3.00313407]
[1736705228572,0.28716652,696.46,695.53,2.83205002]
[1736705230072,0.28716652,696.46,695.54,3.00313407]
[1736705230272,0.28716652,696.46,695.55,2.83205002]
[1736705230773,0.28716652,696.46,695.55,1.73618127]
[1736705231366,0.28716652,696.46,695.4,2.83179632]
[1736705231875,0.28716652,696.46,695.39,3.00313407]
[1736705232775,0.28716652,696.46,695.26,0.28766216]
[1736705249879,0.28716652,696.46,695.34,1.29116877]
[1736705250085,0.28716652,696.46,695.35,0.28762493]
[1736705251688,0.28716652,696.46,695.36,1.29116877]
[1736705251888,0.28716652,696.46,695.37,0.28761666]
[1736705252387,0.28716652,696.46,695.38,1.29116877]
[1736705252789,0.28716652,696.46,695.38,4.12220242]
[1736705252983,0.28716652,696.46,695.39,1.09543596]
[1736705253186,0.28716652,696.46,695.39,2.83103365]
[1736705254089,0.28716652,696.46,695.4,3.00313407]
[1736705254292,0.28716652,696.46,695.41,1.73559769]
[1736705256387,0.28716652,696.46,695.37,0.28761666]
[1736705257394,1.07843814,696.8,695.37,0.28761666]
[1736705258092,1.07843814,696.82,695.37,0.28761666]
[1736705259995,1.07843814,696.81,695.37,0.28761666]
[1736705261090,1.07843814,696.82,695.37,0.28761666]
[1736705262095,1.49983838,696.93,695.37,0.28761666]
[1736705262290,0.28697698,696.92,695.37,0.28761666]
[1736705280512,0.26391876,696.91,695.37,0.28761666]
[1736705280716,1.36542336,696.9,695.37,0.28761666]
[1736705280913,0.26391876,696.89,695.37,0.28761666]
[1736705281518,0.26391607,696.88,695.37,0.28761666]
[1736705281718,1.36542336,696.9,695.37,0.28761666]
[1736705281719,1.07843814,696.76,695.49,1.29116877]
[1736705283423,1.07843814,696.78,695.45,1.29116877]
[1736705283624,1.07843814,696.78,695.46,0.28757944]
[1736705284424,1.07843814,696.78,695.46,3.10931387]
[1736705285424,1.07843814,696.79,695.46,3.10931387]
[1736705285624,1.07843814,696.79,695.47,2.9847261]
[1736705285818,1.07843814,696.79,695.48,2.82173443]
[1736705286022,1.07843814,696.78,695.48,2.82173443]
[1736705286623,1.07843814,696.78,695.49,2.9847261]
[1736705286820,1.07843814,696.78,695.5,2.82173443]
[1736705288323,1.07843814,696.78,695.51,2.9847261]
[1736705288620,1.07843814,696.78,695.52,2.82173443]
[1736705289923,1.07843814,696.78,695.53,2.9847261]
[1736705290118,1.07843814,696.78,695.54,1.72994626]
[1736705291022,1.07843814,696.79,695.54,1.72994626]
[1736705291830,1.07843814,696.78,695.46,0.28757944]
[1736705292426,1.07843814,696.77,695.46,0.28757944]
[1736705293528,1.07843814,696.77,695.46,3.10903068]
[1736705293832,1.07843814,696.78,695.46,3.10903068]
[1736705294431,1.07843814,696.74,695.52,1.29116877]
[1736705296131,1.07843814,696.73,695.52,1.29116877]
[1736705297032,1.07843814,696.73,695.53,1.29116877]
[1736705297735,1.07843814,696.72,695.53,1.29116877]
[1736705298233,1.07843814,696.72,695.53,2.38267375]
[1736705298629,1.07843814,696.72,695.54,1.29116877]
[1736705299434,1.07843814,696.72,695.54,4.11262001]
[1736705299635,1.07843814,696.72,695.55,1.09150498]
[1736705299836,1.07843814,696.71,695.55,1.09150498]
[1736705301037,1.07843814,696.7,695.56,1.29116877]
[1736705301235,1.07043906,696.7,695.56,1.29116877]
[1736705301535,1.07043906,696.7,695.55,1.09150498]
[1736705301536,0.28698522,696.9,695.55,4.07623108]
[1736705301732,0.26391241,696.89,695.56,2.82145124]
[1736705301932,0.28699345,696.88,695.56,2.82145124]
[1736705302135,0.26391241,696.87,695.56,4.10728457]
[1736705302437,0.26391241,696.87,695.57,1.09150498]
[1736705303039,0.26391241,696.87,695.57,4.07623108]
[1736705303238,0.26391298,696.86,695.58,1.09150498]
[1736705303539,0.26391298,696.85,695.58,1.09150498]
[1736705303735,0.26391298,696.87,695.58,2.82145124]
[1736705303932,0.26391298,696.86,695.58,2.82145124]
[1736705304136,0.26391546,696.85,695.58,2.82145124]
[1736705304454,0.26391546,696.84,695.59,2.9847261]
[1736705304633,0.28699345,696.88,695.6,2.82145124]
[1736705304836,0.26391475,696.87,695.6,2.82145124]
[1736705305235,0.26391475,696.87,695.6,1.72994626]
[1736705306134,0.28699345,696.88,695.54,2.9847261]
[1736705306135,0.26391464,696.86,695.55,2.82266765]
[1736705306342,0.28699345,696.88,695.55,2.82266765]
[1736705306639,0.26391355,696.87,695.55,2.82266765]
[1736705306838,0.28699345,696.88,695.55,2.82266765]
[1736705307139,0.26391265,696.87,695.55,2.82266765]
[1736705307638,0.26391265,696.87,695.56,2.9847261]
[1736705307838,0.26391265,696.87,695.57,2.82266765]
[1736705308838,0.26391337,696.86,695.57,2.82266765]
[1736705309038,0.28699345,696.88,695.57,2.82266765]
[1736705309338,0.28699345,696.88,695.58,2.9847261]
[1736705309537,0.28699345,696.88,695.59,1.72994626]
[1736705310941,0.28699345,696.88,695.47,2.82320147]
[1736705311142,0.28699345,696.88,695.47,3.11077677]
[1736705311742,0.28699345,696.88,695.47,4.3966101]
[1736705311944,0.28699345,696.88,695.48,5.80792757]
[1736705312145,0.28699345,696.88,695.49,2.82320147]
[1736705313847,0.28699345,696.88,695.5,2.9847261]
[1736705314049,0.28699345,696.88,695.51,2.82320147]
[1736705315446,0.28699345,696.88,695.52,2.9847261]
[1736705315748,0.28699345,696.88,695.53,2.82320147]
[1736705317349,0.28699345,696.88,695.54,2.9847261]
[1736705317552,0.28699345,696.88,695.55,2.82320147]
[1736705319249,0.2639098,696.87,695.56,2.9847261]
[1736705319451,0.2639098,696.87,695.57,2.82320147]
[1736705319844,0.2639098,696.86,695.57,2.82320147]
[1736705320050,0.2639098,696.85,695.57,2.82320147]
[1736705320352,0.28699345,696.88,695.57,2.82320147]
[1736705320551,0.26391,696.87,695.57,2.82320147]
[1736705320751,0.26391,696.87,695.58,2.9847261]
[1736705320952,0.26391,696.87,695.59,2.82320147]
[1736705322351,0.26391,696.87,695.6,2.9847261]
[1736705322549,0.28699345,696.88,695.61,2.82320147]
[1736705322749,0.2639101,696.87,695.61,2.82320147]
[1736705323749,0.28699345,696.88,695.61,2.82320147]
[1736705323953,0.28699345,696.88,695.62,2.9847261]
[1736705324157,0.26391018,696.87,695.63,2.82320147]
[1736705325155,0.28699345,696.88,695.63,2.82320147]
[1736705325752,0.28699345,696.88,695.64,2.9847261]
[1736705325953,0.28699345,696.88,695.65,2.82320147]
[1736705326755,0.28699345,696.88,695.66,2.9847261]
[1736705326951,0.28699345,696.88,695.67,1.72994626]
[1736705327152,0.26391013,696.87,695.67,1.72994626]
[1736705327351,0.26391013,696.87,695.67,2.82389535]
[1736705327954,0.26390973,696.86,695.67,2.82389535]
[1736705328154,0.26390973,696.87,695.67,2.82389535]
[1736705328457,0.28699345,696.88,695.68,2.9847261]
[1736705328655,0.28699345,696.88,695.69,1.72994626]
[1736705330063,0.28699345,696.88,695.52,2.82747586]
[1736705331962,0.28699345,696.88,695.53,2.9847261]
[1736705332161,0.28699345,696.88,695.54,1.73346119]
[1736705332859,0.28699345,696.88,695.54,2.82750217]
[1736705333963,0.28699345,696.88,695.55,2.9847261]
[1736705334165,0.28699345,696.88,695.56,1.73346119]
[1736705334364,0.28699345,696.88,695.56,2.82752264]
[1736705336161,0.28699345,696.88,695.57,2.97492169]
[1736705336365,0.28699345,696.88,695.58,2.82752264]
[1736705338071,0.28699345,696.88,695.59,2.82752264]
[1736705338271,0.28699345,696.88,695.47,3.11509794]
[1736705338572,0.28699345,696.88,695.48,0.28757117]
[1736705338965,0.28699345,696.88,695.5,1.28583333]
[1736705339166,0.28699345,696.88,695.51,0.28755876]
[1736705339769,0.28699345,696.88,695.51,2.02101995]
[1736705339973,0.28699345,696.88,695.51,0.28755876]
[1736705341370,0.28699345,696.88,695.51,3.11484308]
[1736705341575,0.28699345,696.88,695.52,2.82728432]
[1736705341775,0.28699345,696.88,695.53,3.11483482]
[1736705341968,0.28699345,696.88,695.53,0.2875505]
[1736705360181,0.28699345,696.88,695.53,1.57338383]
[1736705360987,0.28699345,696.88,695.53,3.11139512]
[1736705361388,0.28699345,696.88,695.54,2.98299176]
[1736705361590,0.28699345,696.88,695.55,2.82384462]
[1736705362489,0.28699345,696.88,695.56,0.28753809]
[1736705363387,0.28699345,696.88,695.56,3.27052985]
[1736705363589,0.28699345,696.88,695.57,2.82384462]
[1736705363889,0.28699345,696.88,695.58,0.28752983]
[1736705364589,0.28699345,696.88,695.58,3.27052159]
[1736705364783,0.28699345,696.88,695.59,2.82384462]
[1736705365585,0.28699345,696.88,695.59,4.10967795]
[1736705365790,0.28699345,696.88,695.6,4.07552562]
[1736705365991,0.28699345,696.88,695.61,2.82384462]
[1736705367193,0.28699345,696.88,695.61,4.10967795]
[1736705367393,0.28699345,696.88,695.62,4.07552562]
[1736705367593,0.28699345,696.88,695.63,2.82384462]
[1736705368796,0.28699345,696.88,695.64,2.98299176]
[1736705368988,0.28699345,696.88,695.65,2.82384462]
[1736705370095,0.28699345,696.88,695.66,2.98299176]
[1736705370290,0.28699345,696.88,695.67,2.82384462]
[1736705371790,0.28699345,696.88,695.68,2.98299176]
[1736705371998,0.28699345,696.88,695.69,2.82384462]
[1736705372697,0.28699345,696.88,695.69,1.73131076]
[1736705373495,0.28699345,696.88,695.68,1.73131076]
[1736705373696,0.28699345,696.88,695.67,2.98299176]
[1736705374797,0.28699345,696.88,695.58,0.28752983]
[1736705391315,0.28699345,696.88,695.67,1.28144192]
[1736705391510,0.28699345,696.88,695.68,0.2874885]
[1736705393815,0.28699345,696.88,695.68,3.10378024]
[1736705395707,0.28699345,696.88,695.69,2.98299176]
[1736705395913,0.28699345,696.88,695.7,3.10377197]
[1736705396211,0.28699345,696.88,695.71,0.2874761]
[1736705397515,0.28699345,696.88,695.71,3.27046786]
[1736705397816,0.28699345,696.88,695.72,2.81629174]
[1736705398016,0.28699345,696.88,695.73,0.28746783]
[1736705399110,0.28699345,696.88,695.73,3.27045959]
[1736705399314,0.28699345,696.88,695.74,2.81629174]
[1736705399510,0.28699345,696.88,695.75,0.28745957]
[1736705401410,0.28699345,696.88,695.75,3.27045133]
[1736705401615,0.28699345,696.88,695.76,2.81629174]
[1736705401911,0.28699345,696.88,695.77,0.28745131]
[1736705418927,0.28699345,696.88,695.77,1.56889323]
[1736705419928,0.28699345,696.88,695.77,0.28745131]
[1736705451949,1.07579112,696.87,695.77,0.28745131]
[1736705452747,0.28699345,696.88,695.77,0.28745131]
[1736705454652,1.36278457,696.88,695.77,0.28745131]
[1736705455451,1.07579112,696.86,695.77,0.28745131]
[1736705456255,1.07579112,696.87,695.77,0.28745131]
[1736705457149,1.07579112,696.85,695.77,0.28745131]
[1736705458159,1.07579112,696.84,695.77,0.28745131]
[1736705459155,1.07579112,696.84,695.77,2.01523843]
[1736705459954,1.07579112,696.83,695.77,2.01523843]
[1736705460356,1.07579112,696.83,695.77,0.28745131]
[1736705461055,0.28699345,696.88,695.77,0.28745131]
[1736705469964,0.28699345,696.88,695.79,1.28144192]
[1736705471163,0.28699345,696.88,695.77,0.28745131]
[1736705471565,1.07579112,697.28,695.77,0.28745131]
[1736705471764,0.28683293,697.27,695.77,0.28745131]
[1736705479162,0.26380586,697.26,695.77,0.28745131]
[1736705479365,0.28684116,697.25,695.77,0.28745131]
[1736705479568,0.26380586,697.24,695.77,0.28745131]
[1736705479772,0.28684938,697.23,695.77,0.28745131]
[1736705480070,0.26380586,697.22,695.77,0.28745131]
[1736705480268,1.07579112,697.2,695.77,0.28745131]
[1736705480470,0.26380586,697.19,695.77,0.28745131]
[1736705480769,1.07579112,697.2,695.77,0.28745131]
[1736705480971,0.26380449,697.19,695.77,0.28745131]
[1736705481172,0.55067033,697.19,695.77,0.28745131]
[1736705481472,0.26380449,697.18,695.77,0.28745131]
[1736705481666,0.26380288,697.18,695.77,0.28745131]
[1736705483569,0.26379142,697.17,695.77,0.28745131]
[1736705483772,0.26379142,697.16,695.77,0.28745131]
[1736705483967,0.26379142,697.15,695.77,0.28745131]
[1736705484272,0.28686584,697.19,695.77,0.28745131]
[1736705500090,0.2638184,697.18,695.77,0.28745131]
[1736705500286,0.28687407,697.17,695.77,0.28745131]
[1736705500486,0.2638184,697.16,695.77,0.28745131]
[1736705500691,0.55069659,697.16,695.77,0.28745131]
[1736705500886,0.2638184,697.15,695.77,0.28745131]
[1736705501291,1.07579112,697.09,695.77,0.28745131]
[1736705502194,1.07579112,697.07,695.77,0.28745131]
[1736705502894,1.07579112,697.04,695.77,0.28745131]
[1736705503695,0.2638344,697.03,695.77,0.28745131]
[1736705504091,1.33962552,697.03,695.77,0.28745131]
[1736705504395,0.2638344,697.02,695.77,0.28745131]
[1736705504794,1.07579112,696.89,695.77,0.28745131]
[1736705505898,1.07579112,696.91,695.77,0.28745131]
[1736705506793,1.07579112,696.93,695.77,0.28745131]
[1736705507797,1.07579112,696.95,695.77,0.28745131]
[1736705507997,0.2638736,696.94,695.77,0.28745131]
[1736705508198,1.07579112,696.95,695.77,0.28745131]
[1736705508398,0.26387341,696.94,695.77,0.28745131]
[1736705509194,1.07579112,696.96,695.77,0.28745131]
[1736705509594,0.26386815,696.95,695.77,0.28745131]
[1736705509995,0.26386815,696.94,695.77,0.28745131]
[1736705510195,1.07579112,696.99,695.77,0.28745131]
[1736705510391,0.26387184,696.98,695.77,0.28745131]
[1736705510899,0.26387517,696.97,695.77,0.28745131]
[1736705511099,0.26387517,696.96,695.77,0.28745131]
[1736705511294,0.26387517,696.95,695.77,0.28745131]
[1736705511493,0.26387517,696.94,695.77,0.28745131]
[1736705511695,1.07579112,696.99,695.77,0.28745131]
[1736705511894,0.26387499,696.98,695.77,0.28745131]
[1736705512999,0.26387499,696.97,695.77,0.28745131]
[1736705513198,0.26387499,696.96,695.77,0.28745131]
[1736705513394,1.07579112,697.0,695.77,0.28745131]
[1736705513395,0.26387499,696.95,695.77,0.28745131]
[1736705513601,0.2638752,696.94,695.77,0.28745131]
[1736705513994,0.26387563,696.93,695.77,0.28745131]
[1736705514500,0.2638752,696.94,695.77,0.28745131]
[1736705514702,0.2638762,696.93,695.77,0.28745131]
[1736705516502,0.2638752,696.94,695.77,0.28745131]
[1736705516705,0.26387605,696.93,695.77,0.28745131]
[1736705517603,1.07579112,697.04,695.77,0.28745131]
[1736705517807,0.5508067,697.03,695.77,0.28745131]
[1736705518003,0.26387501,697.02,695.77,0.28745131]
[1736705518402,0.28693992,697.01,695.77,0.28745131]
[1736705518604,0.26387501,697.0,695.77,0.28745131]
[1736705519199,0.26387452,696.99,695.77,0.28745131]
[1736705519398,0.26387452,696.98,695.77,0.28745131]
[1736705519705,0.26387452,696.97,695.77,0.28745131]
[1736705519906,0.28693992,697.01,695.77,0.28745131]
[1736705520101,0.26387669,697.0,695.77,0.28745131]
[1736705521100,0.26387466,696.99,695.77,0.28745131]
[1736705521299,0.26387466,696.98,695.77,0.28745131]
[1736705521501,0.26387466,696.97,695.77,0.28745131]
[1736705521802,0.26387466,696.96,695.77,0.28745131]
[1736705522005,0.28693992,697.01,695.77,0.28745131]
[1736705522307,0.26386944,697.0,695.77,0.28745131]
[1736705525707,1.07579112,696.98,695.77,0.28745131]
[1736705525909,0.26386944,696.97,695.77,0.28745131]
[1736705526206,1.33966056,696.97,695.77,0.28745131]
[1736705526404,0.26387463,696.96,695.77,0.28745131]
[1736705528413,0.26387463,696.95,695.77,0.28745131]
[1736705528612,0.26387463,696.94,695.77,0.28745131]
[1736705528812,0.26387463,696.93,695.77,0.28745131]
[1736705529009,1.07579112,696.96,695.77,0.28745131]
[1736705529211,0.26387504,696.95,695.77,0.28745131]
[1736705529914,1.07579112,696.96,695.77,0.28745131]
[1736705530114,0.26387441,696.95,695.77,0.28745131]
[1736705531918,1.07579112,696.96,695.77,0.28745131]
[1736705532117,1.33966454,696.95,695.77,0.28745131]
[1736705532317,0.26387342,696.94,695.77,0.28745131]
[1736705533013,1.33966454,696.94,695.77,0.28745131]
[1736705533213,0.26387342,696.93,695.77,0.28745131]
[1736705533621,1.07579112,696.94,695.77,0.28745131]
[1736705534219,1.07579112,696.93,695.77,0.28745131]
[1736705535019,1.07579112,696.97,695.77,0.28745131]
[1736705536116,1.07579112,696.95,695.77,0.28745131]
[1736705536924,1.07579112,696.93,695.77,0.28745131]
[1736705537828,1.07579112,696.9,695.77,0.28745131]
[1736705538725,1.07579112,696.85,695.77,0.28745131]
[1736705539926,0.28693992,697.01,695.77,0.28745131]
[1736705539927,1.07579112,696.81,695.77,0.28745131]
[1736705540928,1.07579112,696.85,695.77,0.28745131]
[1736705541828,1.07579112,696.86,695.77,0.28745131]
[1736705543529,1.07579112,696.87,695.77,0.28745131]
[1736705544627,1.07579112,696.78,695.77,0.28745131]
[1736705545427,1.07579112,696.8,695.77,0.28745131]
[1736705545626,1.07579112,696.8,695.47,2.9766528]
[1736705546524,1.07579112,696.77,695.47,2.9766528]
[1736705546832,1.07579112,696.77,695.35,2.9766528]
[1736705547025,1.07579112,696.77,695.36,3.10471672]
[1736705547735,1.07579112,696.8,695.36,3.10471672]
[1736705547933,1.07579112,696.8,695.37,3.26426946]
[1736705548233,1.07579112,696.8,695.38,3.10470844]
[1736705549228,0.28693992,697.01,695.38,3.10470844]
[1736705549229,1.07579112,696.84,695.38,3.10470844]
[1736705549528,0.28701404,696.83,695.38,3.10470844]
[1736705549732,0.28701404,696.83,695.39,2.9766528]
[1736705549935,0.28701404,696.83,695.4,2.81709592]
[1736705551028,0.28701404,696.83,695.41,2.9766528]
[1736705551227,0.28701404,696.83,695.42,1.72709189]
[1736705552431,0.28701404,696.83,695.42,2.81717596]
[1736705552627,0.28701404,696.83,695.43,1.72709189]
[1736705552832,0.28701404,696.83,695.38,0.28761252]
[1736705558236,0.28701404,696.83,695.38,3.10484095]
[1736705559338,0.28701404,696.83,695.44,1.28144192]
[1736705560234,0.28701404,696.83,695.47,1.28144192]
[1736705560435,0.28701404,696.83,695.48,0.28757117]
[1736705560939,0.28701404,696.83,695.48,1.56901309]
[1736705561941,0.28701404,696.83,695.49,1.28144192]
[1736705562144,0.28701404,696.83,695.5,0.2875629]
[1736705562340,0.28701404,696.83,695.5,3.10479133]
[1736705563142,0.28701404,696.83,695.51,2.9766528]
[1736705563338,0.28701404,696.83,695.52,1.72709189]
[1736705563642,0.28701404,696.83,695.52,2.81722843]
[1736705563837,0.28701404,696.83,695.53,0.2875505]
[1736705564743,0.28701404,696.83,695.53,3.2642033]
[1736705565041,0.28701404,696.83,695.54,2.81722843]
[1736705565442,0.28701404,696.83,695.55,0.28754223]
[1736705566444,0.28701404,696.83,695.55,3.26419503]
[1736705566646,0.28701404,696.83,695.56,2.81722843]
[1736705567042,0.26392521,696.82,695.56,2.81722843]
[1736705567247,0.26392509,696.81,695.56,2.81722843]
[1736705567447,0.26392509,696.8,695.56,2.81722843]
[1736705567644,1.07579112,696.81,695.57,2.9766528]
[1736705567950,0.26392509,696.8,695.58,2.81722843]
[1736705568446,1.07579112,696.81,695.58,2.81722843]
[1736705568649,0.26392617,696.8,695.58,2.81722843]
[1736705569849,1.33971729,696.8,695.59,2.9766528]
[1736705570050,1.07579112,696.8,695.6,2.81722843]
[1736705571746,1.07579112,696.8,695.61,2.9766528]
[1736705571950,1.07579112,696.8,695.62,2.81722843]
[1736705573252,1.07579112,696.79,695.62,2.81722843]
[1736705573453,1.07579112,696.79,695.63,2.9766528]
[1736705574252,1.07579112,696.77,695.63,2.9766528]
[1736705575151,1.36280516,696.83,695.55,0.28754223]
[1736705576250,1.07579112,696.81,695.55,0.28754223]
[1736705577951,1.07579112,696.8,695.55,0.28754223]
[1736705579047,1.07579112,696.81,695.55,0.28754223]
[1736705580151,1.07579112,696.8,695.55,0.28754223]
[1736705581356,1.07579112,696.81,695.55,0.28754223]
[1736705582353,1.07579112,696.8,695.55,0.28754223]
[1736705583057,1.07579112,696.81,695.55,0.28754223]
[1736705584050,0.28701404,696.83,695.55,0.28754223]
[1736705584752,1.07579112,696.81,695.56,1.28144192]
[1736705586457,1.07579112,696.81,695.56,4.1026285]
[1736705586657,1.07579112,696.81,695.57,1.09158278]
[1736705586958,1.07579112,696.82,695.57,5.3496775]
[1736705587256,1.07579112,696.82,695.58,2.82118658]
[1736705588156,1.07579112,696.82,695.58,1.7296038]
[1736705588357,0.28701404,696.83,695.58,1.7296038]
[1736705588658,0.28701404,696.83,695.58,5.79819945]
[1736705588855,0.28701404,696.83,695.59,1.7296038]
[1736705590358,0.28701404,696.83,695.55,0.28754223]
[1736705591062,1.07579112,696.81,695.55,0.28754223]
[1736705591760,1.07579112,696.8,695.55,0.28754223]
[1736705593760,1.07579112,696.79,695.55,0.28754223]
[1736705594660,1.07579112,696.78,695.55,0.28754223]
[1736705595262,1.07579112,696.78,695.55,3.26419503]
[1736705595563,1.07579112,696.79,695.56,2.82168717]
[1736705596765,1.07579112,696.79,695.57,2.9766528]
[1736705596966,1.07579112,696.79,695.58,2.82168717]
[1736705597363,1.07579112,696.78,695.58,2.82168717]
[1736705598068,1.07579112,696.78,695.59,2.9766528]
[1736705598270,1.07579112,696.73,695.6,2.82168717]
[1736705599272,0.28701404,696.83,695.6,2.82168717]
[1736705599273,1.07579112,696.7,695.6,2.82168717]
[1736705599463,1.07579112,696.7,695.61,2.9766528]
[1736705599769,1.07579112,696.7,695.62,1.7296038]
[1736705599969,1.07579112,696.69,695.62,1.7296038]
[1736705600971,1.07579112,696.65,695.62,1.7296038]
[1736705601771,1.07579112,696.65,695.55,0.28754223]
[1736705601971,1.07579112,696.66,695.55,0.28754223]
[1736705602870,1.07579112,696.67,695.55,0.28754223]
[1736705603870,1.07579112,696.73,695.55,0.28754223]
[1736705604771,1.07579112,696.74,695.55,0.28754223]
[1736705605769,1.07579112,696.77,695.55,0.28754223]
[1736705607073,1.07579112,696.82,695.55,0.28754223]
[1736705607372,1.36280928,696.82,695.55,0.28754223]
[1736705608370,0.28701816,696.82,695.55,0.28754223]
[1736705614473,1.07579112,696.77,695.55,0.28754223]
[1736705614670,0.2639477,696.76,695.55,0.28754223]
[1736705615068,1.07579112,696.71,695.55,0.28754223]
[1736705617073,1.07579112,696.7,695.55,0.28754223]
[1736705618271,1.07579112,696.76,695.55,0.28754223]
[1736705624078,1.07579112,696.74,695.55,0.28754223]
[1736705625180,1.07579112,696.75,695.55,0.28754223]
[1736705625880,1.07579112,696.74,695.55,0.28754223]
[1736705626882,1.07579112,696.7,695.55,0.28754223]
[1736705627678,0.26398117,696.69,695.55,0.28754223]
[1736705627881,0.26398117,696.68,695.55,0.28754223]
[1736705628081,0.26398117,696.67,695.55,0.28754223]
[1736705628279,0.26398117,696.66,695.55,0.28754223]
[1736705628481,1.07579112,696.64,695.55,0.28754223]
[1736705630284,1.07579112,696.63,695.55,0.28754223]
[1736705632080,1.07579112,696.61,695.55,0.28754223]
[1736705632889,1.07579112,696.62,695.55,0.28754223]
[1736705633786,1.07579112,696.61,695.55,0.28754223]
[1736705635287,0.28705524,696.73,695.55,0.28754223]
[1736705635288,1.07579112,696.6,695.55,0.28754223]
[1736705636488,0.28705524,696.73,695.55,0.28754223]
[1736705636489,1.07579112,696.63,695.55,0.28754223]
[1736705637489,0.28705524,696.73,695.55,0.28754223]
[1736705637490,1.07579112,696.64,695.55,0.28754223]
[1736705638288,1.07579112,696.63,695.55,0.28754223]
[1736705640294,1.07579112,696.62,695.55,0.28754223]
[1736705642293,1.07579112,696.63,695.55,0.28754223]
[1736705644094,1.07579112,696.61,695.55,0.28754223]
[1736705645795,1.07579112,696.64,695.55,0.28754223]
[1736705646995,0.28705524,696.73,695.55,0.28754223]
[1736705646996,1.07579112,696.63,695.55,0.28754223]
[1736705648096,1.07579112,696.64,695.55,0.28754223]
[1736705650098,1.07579112,696.63,695.55,0.28754223]
[1736705654601,1.07579112,696.64,695.55,0.28754223]
[1736705655607,1.07579112,696.65,695.55,0.28754223]
[1736705657006,0.28705524,696.73,695.55,0.28754223]
[1736705666002,1.07579112,696.68,695.55,0.28754223]
[1736705667106,0.28705524,696.73,695.55,0.28754223]
[1736705667107,1.07579112,696.66,695.55,0.28754223]
[1736705668207,1.07579112,696.63,695.55,0.28754223]
[1736705671015,1.07579112,696.62,695.55,0.28754223]
[1736705671615,1.07579112,696.63,695.55,0.28754223]
[1736705673716,0.28705524,696.73,695.55,0.28754223]
[1736705673717,1.07579112,696.62,695.55,0.28754223]
[1736705678019,1.07579112,696.63,695.55,0.28754223]
[1736705678515,1.07579112,696.63,695.55,3.26419503]
[1736705678718,1.07579112,696.63,695.56,2.82363154]
[1736705679119,1.07579112,696.62,695.56,2.82363154]
[1736705679521,1.07579112,696.62,695.57,2.9766528]